[Event "Titled Tuesday Blitz December 13 Early 2022"]
[White "Yilmaz, Mustafa"]
[Black "Deac, Bogdan-Daniel"]
[WhiteFideId "6302718"]
[BlackFideId "1226380"]
[WhiteElo "2564"]
[BlackElo "2649"]
[Result "0-1"]
[Round "09"]
[TimeControl "180+1"]
[Date "2022.12.13"]
[WhiteClock "0:00:04"]
[BlackClock "0:00:06"]

1. d4 {[%clk 0:03:00]}  Nf6 {[%clk 0:03:00]} 2. c4 {[%clk 0:03:01]}  e6 {[%clk 0:03:00]} 3. Nf3 {[%clk 0:03:01]}  d5 {[%clk 0:03:01]} 4. Nc3 {[%clk 0:03:02]}  dxc4 {[%clk 0:03:00]} 5. e4 {[%clk 0:03:01]}  Bb4 {[%clk 0:03:00]} 6. Bxc4 {[%clk 0:03:00]}  Nxe4 {[%clk 0:03:00]} 7. O-O {[%clk 0:03:00]}  Nf6 {[%clk 0:03:01]} 8. Qa4+ {[%clk 0:02:58]}  Nc6 {[%clk 0:03:01]} 9. Ne5 {[%clk 0:02:52]}  Bd6 {[%clk 0:03:00]} 10. Nxc6 {[%clk 0:02:50]}  bxc6 {[%clk 0:03:01]} 11. Qxc6+ {[%clk 0:02:50]}  Bd7 {[%clk 0:03:01]} 12. Qf3 {[%clk 0:02:50]}  h6 {[%clk 0:03:02]} 13. Bf4 {[%clk 0:02:50]}  Bxf4 {[%clk 0:03:02]} 14. Qxf4 {[%clk 0:02:50]}  Bc6 {[%clk 0:03:03]} 15. Rfe1 {[%clk 0:02:47]}  O-O {[%clk 0:03:02]} 16. b3 {[%clk 0:02:40]}  Qb8 {[%clk 0:02:46]} 17. Rac1 {[%clk 0:02:37]}  Rd8 {[%clk 0:02:43]} 18. Re5 {[%clk 0:01:46]}  Qb6 {[%clk 0:02:36]} 19. Rc5 {[%clk 0:01:46]}  a6 {[%clk 0:01:52]} 20. Ne2 {[%clk 0:01:40]}  Rd6 {[%clk 0:01:46]} 21. Bd3 {[%clk 0:01:33]}  Rad8 {[%clk 0:01:39]} 22. Qd2 {[%clk 0:01:25]}  Nd7 {[%clk 0:01:07]} 23. R5c3 {[%clk 0:01:21]}  e5 {[%clk 0:00:51]} 24. Qc2 {[%clk 0:01:19]}  Bb5 {[%clk 0:00:37]} 25. Rxc7 {[%clk 0:00:58]}  exd4 {[%clk 0:00:35]} 26. Rc8 {[%clk 0:00:51]}  Ne5 {[%clk 0:00:25]} 27. Bxb5 {[%clk 0:00:47]}  axb5 {[%clk 0:00:23]} 28. Qe4 {[%clk 0:00:45]}  Ng6 {[%clk 0:00:19]} 29. Qd3 {[%clk 0:00:27]}  Ne5 {[%clk 0:00:15]} 30. Qe4 {[%clk 0:00:27]}  Ng6 {[%clk 0:00:14]} 31. Qd3 {[%clk 0:00:22]}  Qa7 {[%clk 0:00:11]} 32. R1c2 {[%clk 0:00:14]}  Qd7 {[%clk 0:00:09]} 33. Rxd8+ {[%clk 0:00:14]}  Qxd8 {[%clk 0:00:09]} 34. Rd2 {[%clk 0:00:14]}  b4 {[%clk 0:00:07]} 35. Nxd4 {[%clk 0:00:13]}  Nf4 {[%clk 0:00:06]} 36. Qe4 {[%clk 0:00:02]}  Rxd4 {[%clk 0:00:06]} 37. Rxd4 {[%clk 0:00:03]}  Qxd4 {[%clk 0:00:06]} 38. Qe8+ {[%clk 0:00:04]}  Kh7 {[%clk 0:00:06]} 39. g3 {[%clk 0:00:04]}  Qd1+ {[%clk 0:00:06]} 0-1


[Site "https://www.chess.com"]

[Event "Titled Tuesday Blitz December 13 Early 2022"]
[White "Zaichenko, Daria"]
[Black "Osinovsky, Stepan"]
[WhiteFideId "4197453"]
[BlackFideId "4157354"]
[WhiteElo "2039"]
[BlackElo "2222"]
[Result "0-1"]
[Round "09"]
[TimeControl "180+1"]
[Date "2022.12.14"]
[WhiteClock "0:01:26"]
[BlackClock "0:00:16"]

1. e4 {[%clk 0:02:56]}  e5 {[%clk 0:02:53]} 2. Nf3 {[%clk 0:02:55]}  Nc6 {[%clk 0:02:54]} 3. Bc4 {[%clk 0:02:55]}  Nf6 {[%clk 0:02:54]} 4. d3 {[%clk 0:02:56]}  Be7 {[%clk 0:02:53]} 5. c3 {[%clk 0:02:56]}  O-O {[%clk 0:02:53]} 6. O-O {[%clk 0:02:56]}  Kh8 {[%clk 0:02:53]} 7. Bb3 {[%clk 0:02:55]}  Ng8 {[%clk 0:02:51]} 8. d4 {[%clk 0:02:53]}  d6 {[%clk 0:02:43]} 9. dxe5 {[%clk 0:02:45]}  Nxe5 {[%clk 0:02:39]} 10. Nxe5 {[%clk 0:02:45]}  dxe5 {[%clk 0:02:40]} 11. Qh5 {[%clk 0:02:35]}  f5 {[%clk 0:02:28]} 12. Bxg8 {[%clk 0:02:30]}  Kxg8 {[%clk 0:02:25]} 13. Nd2 {[%clk 0:02:28]}  Be6 {[%clk 0:02:02]} 14. Nb3 {[%clk 0:02:26]}  Qd3 {[%clk 0:01:30]} 15. exf5 {[%clk 0:02:21]}  Rxf5 {[%clk 0:01:28]} 16. Qd1 {[%clk 0:02:21]}  Qe4 {[%clk 0:01:15]} 17. Be3 {[%clk 0:02:19]}  Bd5 {[%clk 0:01:12]} 18. f3 {[%clk 0:02:07]}  Qxe3+ {[%clk 0:01:12]} 19. Rf2 {[%clk 0:02:07]}  Rd8 {[%clk 0:01:05]} 20. Qc2 {[%clk 0:02:05]}  e4 {[%clk 0:00:57]} 21. Rd1 {[%clk 0:01:58]}  Bh4 {[%clk 0:00:43]} 22. g3 {[%clk 0:01:54]}  Rxf3 {[%clk 0:00:33]} 23. gxh4 {[%clk 0:01:49]}  Rdf8 {[%clk 0:00:31]} 24. Rf1 {[%clk 0:01:41]}  Rxf2 {[%clk 0:00:30]} 25. Rxf2 {[%clk 0:01:41]}  Qe1+ {[%clk 0:00:31]} 26. Kg2 {[%clk 0:01:35]}  e3+ {[%clk 0:00:31]} 27. Kg3 {[%clk 0:01:36]}  Qg1+ {[%clk 0:00:27]} 28. Rg2 {[%clk 0:01:32]}  Bxg2 {[%clk 0:00:18]} 29. Nd4 {[%clk 0:01:27]}  Be4+ {[%clk 0:00:17]} 30. Kh3 {[%clk 0:01:26]}  Bxc2 {[%clk 0:00:16]} 0-1


[Site "https://www.chess.com"]

[Event "Titled Tuesday Blitz December 13 Early 2022"]
[White "Zhalmakhanov, Ramazan"]
[Black "Salinas Herrera, Pablo"]
[WhiteFideId "13706357"]
[BlackFideId "3407128"]
[WhiteElo "2432"]
[BlackElo "2557"]
[Result "0-1"]
[Round "09"]
[TimeControl "180+1"]
[Date "2022.12.13"]
[WhiteClock "0:01:40"]
[BlackClock "0:01:26"]

1. d4 {[%clk 0:02:56]}  d5 {[%clk 0:02:55]} 2. Bf4 {[%clk 0:02:56]}  Nf6 {[%clk 0:02:54]} 3. e3 {[%clk 0:02:55]}  e6 {[%clk 0:02:54]} 4. Nf3 {[%clk 0:02:54]}  Bd6 {[%clk 0:02:54]} 5. Bg3 {[%clk 0:02:55]}  O-O {[%clk 0:02:54]} 6. c4 {[%clk 0:02:54]}  c5 {[%clk 0:02:52]} 7. Nc3 {[%clk 0:02:51]}  cxd4 {[%clk 0:02:51]} 8. Nxd4 {[%clk 0:02:50]}  Nc6 {[%clk 0:02:51]} 9. cxd5 {[%clk 0:02:50]}  exd5 {[%clk 0:02:51]} 10. Be2 {[%clk 0:02:48]}  Re8 {[%clk 0:02:46]} 11. O-O {[%clk 0:02:44]}  Bxg3 {[%clk 0:02:44]} 12. hxg3 {[%clk 0:02:45]}  Be6 {[%clk 0:02:40]} 13. Rc1 {[%clk 0:02:43]}  Rc8 {[%clk 0:02:38]} 14. Nxc6 {[%clk 0:02:34]}  bxc6 {[%clk 0:02:32]} 15. Na4 {[%clk 0:02:34]}  d4 {[%clk 0:02:09]} 16. exd4 {[%clk 0:02:20]}  Bxa2 {[%clk 0:02:07]} 17. Nc5 {[%clk 0:02:14]}  Bd5 {[%clk 0:02:00]} 18. Bf3 {[%clk 0:02:12]}  Rb8 {[%clk 0:02:00]} 19. Qd2 {[%clk 0:02:05]}  Rb5 {[%clk 0:01:47]} 20. Rfe1 {[%clk 0:01:49]}  Rxe1+ {[%clk 0:01:41]} 21. Qxe1 {[%clk 0:01:48]}  Rxb2 {[%clk 0:01:38]} 22. Ra1 {[%clk 0:01:48]}  Bxf3 {[%clk 0:01:34]} 23. gxf3 {[%clk 0:01:47]}  Qxd4 {[%clk 0:01:33]} 24. Rxa7 {[%clk 0:01:47]}  h5 {[%clk 0:01:28]} 25. Ne4 {[%clk 0:01:40]}  Qxa7 {[%clk 0:01:26]} 0-1


[Site "https://www.chess.com"]

[Event "Titled Tuesday Blitz December 13 Early 2022"]
[White "Alice, Mateus Felizardo Viageiro"]
[Black "Aizpurua, Patrick Emilio"]
[WhiteFideId "14800047"]
[BlackFideId "6600522"]
[WhiteElo "2189"]
[BlackElo "2378"]
[Result "0-1"]
[Round "10"]
[TimeControl "180+1"]
[Date "2022.12.14"]
[WhiteClock "0:00:17"]
[BlackClock "0:00:13"]

1. e4 {[%clk 0:03:00]}  e5 {[%clk 0:02:59]} 2. Nf3 {[%clk 0:03:00]}  Nc6 {[%clk 0:02:57]} 3. Bc4 {[%clk 0:02:59]}  Bc5 {[%clk 0:02:56]} 4. d3 {[%clk 0:02:59]}  d6 {[%clk 0:02:56]} 5. h3 {[%clk 0:02:58]}  Nf6 {[%clk 0:02:56]} 6. Nc3 {[%clk 0:02:56]}  a6 {[%clk 0:02:53]} 7. O-O {[%clk 0:02:53]}  Be6 {[%clk 0:02:53]} 8. Bb3 {[%clk 0:02:47]}  h6 {[%clk 0:02:48]} 9. Be3 {[%clk 0:02:45]}  Ba7 {[%clk 0:02:47]} 10. Bxe6 {[%clk 0:02:41]}  fxe6 {[%clk 0:02:46]} 11. d4 {[%clk 0:02:41]}  exd4 {[%clk 0:02:41]} 12. Nxd4 {[%clk 0:02:42]}  Nxd4 {[%clk 0:02:35]} 13. Bxd4 {[%clk 0:02:43]}  O-O {[%clk 0:02:35]} 14. e5 {[%clk 0:02:39]}  Bxd4 {[%clk 0:02:11]} 15. Qxd4 {[%clk 0:02:40]}  Nh7 {[%clk 0:02:10]} 16. exd6 {[%clk 0:02:33]}  cxd6 {[%clk 0:02:09]} 17. Rad1 {[%clk 0:02:32]}  d5 {[%clk 0:02:09]} 18. Rfe1 {[%clk 0:02:27]}  Re8 {[%clk 0:01:57]} 19. Re5 {[%clk 0:02:20]}  Rc8 {[%clk 0:01:56]} 20. Rde1 {[%clk 0:02:19]}  Qd7 {[%clk 0:01:48]} 21. a4 {[%clk 0:02:14]}  Ng5 {[%clk 0:01:43]} 22. Qg4 {[%clk 0:01:31]}  Rc4 {[%clk 0:01:40]} 23. Rxd5 {[%clk 0:01:20]}  Rxg4 {[%clk 0:00:18]} 24. Rxd7 {[%clk 0:00:42]}  Nf3+ {[%clk 0:00:18]} 25. Kf1 {[%clk 0:00:40]}  Rxg2 {[%clk 0:00:19]} 26. Kxg2 {[%clk 0:00:34]}  Nxe1+ {[%clk 0:00:19]} 27. Kf1 {[%clk 0:00:33]}  Nxc2 {[%clk 0:00:20]} 28. Rxb7 {[%clk 0:00:29]}  Rf8 {[%clk 0:00:20]} 29. Ke2 {[%clk 0:00:23]}  Nd4+ {[%clk 0:00:19]} 30. Ke1 {[%clk 0:00:20]}  e5 {[%clk 0:00:18]} 31. Rb6 {[%clk 0:00:19]}  a5 {[%clk 0:00:18]} 32. Rb7 {[%clk 0:00:17]}  Rf3 {[%clk 0:00:17]} 33. h4 {[%clk 0:00:15]}  Rf4 {[%clk 0:00:17]} 34. Re7 {[%clk 0:00:15]}  Rxh4 {[%clk 0:00:16]} 35. Kd2 {[%clk 0:00:15]}  Nb3+ {[%clk 0:00:15]} 36. Ke2 {[%clk 0:00:14]}  Nd4+ {[%clk 0:00:15]} 37. Kd2 {[%clk 0:00:13]}  Rh5 {[%clk 0:00:15]} 38. Nd5 {[%clk 0:00:10]}  Kf8 {[%clk 0:00:15]} 39. Ra7 {[%clk 0:00:09]}  e4 {[%clk 0:00:14]} 40. Ke3 {[%clk 0:00:08]}  Rxd5 {[%clk 0:00:13]} 41. Kxe4 {[%clk 0:00:08]}  Rd6 {[%clk 0:00:12]} 42. Ra8+ {[%clk 0:00:08]}  Ke7 {[%clk 0:00:12]} 43. Ra7+ {[%clk 0:00:09]}  Kf6 {[%clk 0:00:12]} 44. Rxa5 {[%clk 0:00:10]}  Ne6 {[%clk 0:00:12]} 45. Rb5 {[%clk 0:00:10]}  Rd4+ {[%clk 0:00:13]} 46. Ke3 {[%clk 0:00:10]}  Rxa4 {[%clk 0:00:14]} 47. b3 {[%clk 0:00:11]}  Ra3 {[%clk 0:00:13]} 48. f3 {[%clk 0:00:12]}  Ra1 {[%clk 0:00:13]} 49. Rb6 {[%clk 0:00:13]}  Kf5 {[%clk 0:00:13]} 50. b4 {[%clk 0:00:13]}  Rb1 {[%clk 0:00:13]} 51. Rb5+ {[%clk 0:00:14]}  Kf6 {[%clk 0:00:12]} 52. f4 {[%clk 0:00:14]}  Rb3+ {[%clk 0:00:13]} 53. Ke4 {[%clk 0:00:15]}  Rb1 {[%clk 0:00:13]} 54. f5 {[%clk 0:00:16]}  Re1+ {[%clk 0:00:13]} 55. Kd3 {[%clk 0:00:16]}  Nf4+ {[%clk 0:00:12]} 56. Kd2 {[%clk 0:00:16]}  Re5 {[%clk 0:00:12]} 57. Rb6+ {[%clk 0:00:15]}  Kxf5 {[%clk 0:00:12]} 58. Rc6 {[%clk 0:00:16]}  Nd5 {[%clk 0:00:13]} 59. Rc5 {[%clk 0:00:16]}  Nxb4 {[%clk 0:00:13]} 60. Rc4 {[%clk 0:00:17]}  Nd5 {[%clk 0:00:13]} 0-1


[Site "https://www.chess.com"]

[Event "Titled Tuesday Blitz December 13 Early 2022"]
[White "Ambartsumova, Karina"]
[Black "Sanchez, Robert"]
[WhiteFideId "4166299"]
[BlackFideId "2034360"]
[WhiteElo "2319"]
[BlackElo "2350"]
[Result "1-0"]
[Round "10"]
[TimeControl "180+1"]
[Date "2022.12.14"]
[WhiteClock "0:00:03"]
[BlackClock "0:00:04"]

1. e4 {[%clk 0:03:00]}  d5 {[%clk 0:03:00]} 2. exd5 {[%clk 0:03:00]}  Qxd5 {[%clk 0:03:00]} 3. Nc3 {[%clk 0:03:01]}  Qe6+ {[%clk 0:03:00]} 4. Be2 {[%clk 0:02:49]}  Qg6 {[%clk 0:03:00]} 5. Bf3 {[%clk 0:02:48]}  Nc6 {[%clk 0:03:00]} 6. Nge2 {[%clk 0:02:43]}  e5 {[%clk 0:02:59]} 7. O-O {[%clk 0:02:32]}  Bd7 {[%clk 0:02:59]} 8. d4 {[%clk 0:02:20]}  O-O-O {[%clk 0:02:55]} 9. Be3 {[%clk 0:01:42]}  Kb8 {[%clk 0:02:45]} 10. dxe5 {[%clk 0:01:33]}  Nxe5 {[%clk 0:02:44]} 11. Nf4 {[%clk 0:01:33]}  Nxf3+ {[%clk 0:02:38]} 12. Qxf3 {[%clk 0:01:34]}  Qc6 {[%clk 0:02:30]} 13. Qxc6 {[%clk 0:01:17]}  Bxc6 {[%clk 0:02:31]} 14. Rad1 {[%clk 0:01:17]}  Bd6 {[%clk 0:02:29]} 15. Nh5 {[%clk 0:01:10]}  Ne7 {[%clk 0:02:09]} 16. Nxg7 {[%clk 0:00:42]}  Rhg8 {[%clk 0:02:05]} 17. Bd4 {[%clk 0:00:35]}  Nf5 {[%clk 0:01:51]} 18. Bf6 {[%clk 0:00:31]}  Nxg7 {[%clk 0:01:46]} 19. Bxd8 {[%clk 0:00:30]}  Ne6 {[%clk 0:01:47]} 20. f3 {[%clk 0:00:20]}  Rxd8 {[%clk 0:01:46]} 21. Kh1 {[%clk 0:00:20]}  Rg8 {[%clk 0:01:46]} 22. Ne2 {[%clk 0:00:19]}  Bb5 {[%clk 0:01:40]} 23. Rfe1 {[%clk 0:00:19]}  a6 {[%clk 0:01:31]} 24. Nd4 {[%clk 0:00:18]}  Nxd4 {[%clk 0:01:31]} 25. Rxd4 {[%clk 0:00:19]}  Bc6 {[%clk 0:01:31]} 26. Rh4 {[%clk 0:00:19]}  Rg5 {[%clk 0:01:19]} 27. Rxh7 {[%clk 0:00:18]}  Rd5 {[%clk 0:01:17]} 28. Rxf7 {[%clk 0:00:15]}  Rh5 {[%clk 0:01:12]} 29. h3 {[%clk 0:00:15]}  Rd5 {[%clk 0:01:11]} 30. Rc1 {[%clk 0:00:08]}  Rd2 {[%clk 0:01:02]} 31. h4 {[%clk 0:00:07]}  Rd4 {[%clk 0:00:56]} 32. Rh7 {[%clk 0:00:07]}  Ka7 {[%clk 0:00:40]} 33. c3 {[%clk 0:00:05]}  Rd2 {[%clk 0:00:39]} 34. h5 {[%clk 0:00:05]}  Rxb2 {[%clk 0:00:31]} 35. h6 {[%clk 0:00:05]}  Bf4 {[%clk 0:00:32]} 36. Re1 {[%clk 0:00:04]}  Rxa2 {[%clk 0:00:27]} 37. Rh8 {[%clk 0:00:04]}  Bxh6 {[%clk 0:00:22]} 38. Rxh6 {[%clk 0:00:04]}  Rc2 {[%clk 0:00:23]} 39. Re3 {[%clk 0:00:04]}  a5 {[%clk 0:00:23]} 40. Rh5 {[%clk 0:00:04]}  b6 {[%clk 0:00:22]} 41. Rh7 {[%clk 0:00:04]}  Kb7 {[%clk 0:00:18]} 42. Ree7 {[%clk 0:00:04]}  Rxc3 {[%clk 0:00:18]} 43. Rxc7+ {[%clk 0:00:05]}  Ka6 {[%clk 0:00:19]} 44. Rh6 {[%clk 0:00:05]}  Kb5 {[%clk 0:00:18]} 45. Rh5+ {[%clk 0:00:05]}  Kb4 {[%clk 0:00:18]} 46. Rh4+ {[%clk 0:00:06]}  Kb5 {[%clk 0:00:18]} 47. Rh5+ {[%clk 0:00:06]}  Kb4 {[%clk 0:00:18]} 48. Rh6 {[%clk 0:00:06]}  Kb5 {[%clk 0:00:15]} 49. Kh2 {[%clk 0:00:06]}  a4 {[%clk 0:00:15]} 50. Ra7 {[%clk 0:00:06]}  a3 {[%clk 0:00:14]} 51. Rh4 {[%clk 0:00:06]}  Bd5 {[%clk 0:00:13]} 52. Rha4 {[%clk 0:00:05]}  Rc2 {[%clk 0:00:11]} 53. Rxa3 {[%clk 0:00:05]}  Kb4 {[%clk 0:00:12]} 54. Ra1 {[%clk 0:00:05]}  b5 {[%clk 0:00:12]} 55. Rf1 {[%clk 0:00:05]}  Kc5 {[%clk 0:00:12]} 56. Rc7+ {[%clk 0:00:04]}  Bc6 {[%clk 0:00:11]} 57. Kg3 {[%clk 0:00:04]}  Kb6 {[%clk 0:00:11]} 58. Rc8 {[%clk 0:00:03]}  b4 {[%clk 0:00:11]} 59. Rf2 {[%clk 0:00:03]}  Rc5 {[%clk 0:00:10]} 60. Rb2 {[%clk 0:00:02]}  Kb5 {[%clk 0:00:09]} 61. Kf4 {[%clk 0:00:02]}  Kc4 {[%clk 0:00:07]} 62. g4 {[%clk 0:00:02]}  Kc3 {[%clk 0:00:06]} 63. Rh2 {[%clk 0:00:02]}  Rc4+ {[%clk 0:00:06]} 64. Ke5 {[%clk 0:00:02]}  Rc5+ {[%clk 0:00:05]} 65. Kd6 {[%clk 0:00:02]}  Rc4 {[%clk 0:00:04]} 66. Rxc6 {[%clk 0:00:02]}  Rxc6+ {[%clk 0:00:04]} 67. Kxc6 {[%clk 0:00:03]}  b3 {[%clk 0:00:04]} 68. g5 {[%clk 0:00:03]} 1-0


[Site "https://www.chess.com"]

[Event "Titled Tuesday Blitz December 13 Early 2022"]
[White "Balint, Vilmos"]
[Black "Royal, Shreyas"]
[WhiteFideId "718050"]
[BlackFideId "448869"]
[WhiteElo "2183"]
[BlackElo "2331"]
[Result "0-1"]
[Round "10"]
[TimeControl "180+1"]
[Date "2022.12.14"]
[WhiteClock "0:01:01"]
[BlackClock "0:01:21"]

1. e4 {[%clk 0:02:50]}  c5 {[%clk 0:02:59]} 2. Nf3 {[%clk 0:02:50]}  d6 {[%clk 0:02:59]} 3. d4 {[%clk 0:02:51]}  cxd4 {[%clk 0:03:00]} 4. Bb5+ {[%clk 0:02:51]}  Bd7 {[%clk 0:02:57]} 5. Bxd7+ {[%clk 0:02:51]}  Nxd7 {[%clk 0:02:58]} 6. Nxd4 {[%clk 0:02:51]}  Ngf6 {[%clk 0:02:58]} 7. f3 {[%clk 0:02:51]}  a6 {[%clk 0:02:57]} 8. O-O {[%clk 0:02:51]}  b5 {[%clk 0:02:57]} 9. a4 {[%clk 0:02:50]}  Qb6 {[%clk 0:02:51]} 10. Be3 {[%clk 0:02:49]}  Qb7 {[%clk 0:02:50]} 11. axb5 {[%clk 0:02:48]}  axb5 {[%clk 0:02:50]} 12. Rxa8+ {[%clk 0:02:48]}  Qxa8 {[%clk 0:02:51]} 13. Nxb5 {[%clk 0:02:49]}  Qb7 {[%clk 0:02:51]} 14. N1c3 {[%clk 0:02:48]}  g6 {[%clk 0:02:52]} 15. Nd5 {[%clk 0:02:43]}  Bg7 {[%clk 0:02:43]} 16. Nbc7+ {[%clk 0:02:38]}  Kf8 {[%clk 0:02:42]} 17. b3 {[%clk 0:02:34]}  h5 {[%clk 0:02:36]} 18. Bd4 {[%clk 0:02:30]}  h4 {[%clk 0:02:32]} 19. Qa1 {[%clk 0:02:28]}  h3 {[%clk 0:02:23]} 20. g3 {[%clk 0:02:28]}  Kg8 {[%clk 0:02:07]} 21. Nxe7+ {[%clk 0:02:26]}  Kh7 {[%clk 0:02:07]} 22. Ncd5 {[%clk 0:02:24]}  Ra8 {[%clk 0:01:51]} 23. Qb2 {[%clk 0:02:23]}  Ne5 {[%clk 0:01:47]} 24. Bxe5 {[%clk 0:02:13]}  dxe5 {[%clk 0:01:48]} 25. Nxf6+ {[%clk 0:02:13]}  Bxf6 {[%clk 0:01:48]} 26. Nd5 {[%clk 0:02:13]}  Qa7+ {[%clk 0:01:47]} 27. Kh1 {[%clk 0:02:12]}  Bg7 {[%clk 0:01:46]} 28. c4 {[%clk 0:02:10]}  f5 {[%clk 0:01:45]} 29. b4 {[%clk 0:02:07]}  Qa4 {[%clk 0:01:34]} 30. c5 {[%clk 0:01:41]}  Qb5 {[%clk 0:01:30]} 31. Rc1 {[%clk 0:01:38]}  Qd3 {[%clk 0:01:26]} 32. Qc3 {[%clk 0:01:35]}  Qe2 {[%clk 0:01:25]} 33. Rg1 {[%clk 0:01:01]}  Ra2 {[%clk 0:01:21]} 0-1


[Site "https://www.chess.com"]

[Event "Titled Tuesday Blitz December 13 Early 2022"]
[White "Boros, Denes"]
[Black "Seo, Jung Min"]
[WhiteFideId "722340"]
[BlackFideId "1734687"]
[WhiteElo "2464"]
[BlackElo "2457"]
[Result "0-1"]
[Round "10"]
[TimeControl "180+1"]
[Date "2022.12.13"]
[WhiteClock "0:00:28"]
[BlackClock "0:00:08"]

1. e4 {[%clk 0:03:00]}  c5 {[%clk 0:02:59]} 2. Nf3 {[%clk 0:02:59]}  d6 {[%clk 0:02:59]} 3. a3 {[%clk 0:02:58]}  Nf6 {[%clk 0:02:59]} 4. e5 {[%clk 0:02:57]}  dxe5 {[%clk 0:02:59]} 5. Nxe5 {[%clk 0:02:58]}  Qd4 {[%clk 0:02:52]} 6. Bb5+ {[%clk 0:02:54]}  Nbd7 {[%clk 0:02:50]} 7. Qe2 {[%clk 0:02:54]}  a6 {[%clk 0:02:47]} 8. Nf3 {[%clk 0:02:37]}  Qe4 {[%clk 0:02:46]} 9. Nc3 {[%clk 0:02:37]}  Qxe2+ {[%clk 0:02:45]} 10. Bxe2 {[%clk 0:02:38]}  b6 {[%clk 0:02:39]} 11. d4 {[%clk 0:02:36]}  e6 {[%clk 0:02:35]} 12. Bf4 {[%clk 0:02:33]}  Bb7 {[%clk 0:02:34]} 13. O-O-O {[%clk 0:02:31]}  cxd4 {[%clk 0:02:33]} 14. Rxd4 {[%clk 0:02:31]}  Bc5 {[%clk 0:02:33]} 15. Rd2 {[%clk 0:02:30]}  b5 {[%clk 0:02:22]} 16. Bd3 {[%clk 0:02:20]}  O-O {[%clk 0:02:20]} 17. Be3 {[%clk 0:02:19]}  Bxe3 {[%clk 0:02:19]} 18. fxe3 {[%clk 0:02:20]}  Nc5 {[%clk 0:02:19]} 19. Rf1 {[%clk 0:02:19]}  Rfd8 {[%clk 0:02:17]} 20. Ne5 {[%clk 0:02:18]}  Ncd7 {[%clk 0:02:07]} 21. Nxd7 {[%clk 0:02:15]}  Nxd7 {[%clk 0:02:06]} 22. Be4 {[%clk 0:02:12]}  Nc5 {[%clk 0:02:04]} 23. Bxb7 {[%clk 0:02:10]}  Nxb7 {[%clk 0:02:05]} 24. Rfd1 {[%clk 0:02:03]}  Rxd2 {[%clk 0:02:02]} 25. Rxd2 {[%clk 0:02:04]}  Kf8 {[%clk 0:02:02]} 26. Rd7 {[%clk 0:02:01]}  Nd8 {[%clk 0:01:54]} 27. a4 {[%clk 0:01:52]}  bxa4 {[%clk 0:01:47]} 28. Nxa4 {[%clk 0:01:53]}  Nc6 {[%clk 0:01:47]} 29. Nc5 {[%clk 0:01:50]}  a5 {[%clk 0:01:44]} 30. Rc7 {[%clk 0:01:47]}  Ne5 {[%clk 0:01:42]} 31. c3 {[%clk 0:01:40]}  Ng4 {[%clk 0:01:36]} 32. e4 {[%clk 0:01:33]}  Ke8 {[%clk 0:01:26]} 33. Kc2 {[%clk 0:01:29]}  Nxh2 {[%clk 0:01:23]} 34. b4 {[%clk 0:01:28]}  axb4 {[%clk 0:01:22]} 35. cxb4 {[%clk 0:01:29]}  Rb8 {[%clk 0:01:21]} 36. Kc3 {[%clk 0:01:26]}  Ng4 {[%clk 0:01:21]} 37. Na6 {[%clk 0:01:17]}  Rb6 {[%clk 0:01:20]} 38. Ra7 {[%clk 0:01:17]}  Ne5 {[%clk 0:01:20]} 39. b5 {[%clk 0:01:16]}  Kd8 {[%clk 0:01:16]} 40. Kb4 {[%clk 0:01:10]}  Nc6+ {[%clk 0:00:35]} 41. Kc5 {[%clk 0:01:10]}  Nxa7 {[%clk 0:00:36]} 42. Kxb6 {[%clk 0:01:10]}  Nc8+ {[%clk 0:00:28]} 43. Kc6 {[%clk 0:01:08]}  Ne7+ {[%clk 0:00:28]} 44. Kd6 {[%clk 0:00:56]}  Nc8+ {[%clk 0:00:27]} 45. Kc5 {[%clk 0:00:56]}  Kd7 {[%clk 0:00:22]} 46. Nb8+ {[%clk 0:00:46]}  Kc7 {[%clk 0:00:22]} 47. Na6+ {[%clk 0:00:45]}  Kd7 {[%clk 0:00:19]} 48. Nb4 {[%clk 0:00:41]}  f6 {[%clk 0:00:15]} 49. Nc6 {[%clk 0:00:37]}  Kc7 {[%clk 0:00:10]} 50. Nd4 {[%clk 0:00:34]}  Kd7 {[%clk 0:00:10]} 51. b6 {[%clk 0:00:35]}  Nxb6 {[%clk 0:00:10]} 52. Kxb6 {[%clk 0:00:36]}  Kd6 {[%clk 0:00:11]} 53. Kb7 {[%clk 0:00:36]}  Ke5 {[%clk 0:00:11]} 54. Ne2 {[%clk 0:00:31]}  Kxe4 {[%clk 0:00:11]} 55. Kc6 {[%clk 0:00:32]}  e5 {[%clk 0:00:11]} 56. Kd6 {[%clk 0:00:30]}  Ke3 {[%clk 0:00:09]} 57. Nc3 {[%clk 0:00:30]}  Kf2 {[%clk 0:00:09]} 58. g4 {[%clk 0:00:30]}  Kf3 {[%clk 0:00:09]} 59. g5 {[%clk 0:00:30]}  fxg5 {[%clk 0:00:09]} 60. Kxe5 {[%clk 0:00:30]}  g4 {[%clk 0:00:09]} 61. Ne4 {[%clk 0:00:29]}  g3 {[%clk 0:00:08]} 62. Nd2+ {[%clk 0:00:28]}  Ke2 {[%clk 0:00:08]} 0-1


[Site "https://www.chess.com"]

[Event "Titled Tuesday Blitz December 13 Early 2022"]
[White "Bruned, Boris"]
[Black "Seifert, Henryk"]
[WhiteFideId "621790"]
[BlackFideId "1100963"]
[WhiteElo "2049"]
[BlackElo "2120"]
[Result "1-0"]
[Round "10"]
[TimeControl "180+1"]
[Date "2022.12.14"]
[WhiteClock "0:00:40"]
[BlackClock "0:00:12"]

1. b3 {[%clk 0:03:00]}  d5 {[%clk 0:02:58]} 2. Bb2 {[%clk 0:03:01]}  c5 {[%clk 0:02:56]} 3. e3 {[%clk 0:03:02]}  a6 {[%clk 0:02:53]} 4. Nf3 {[%clk 0:03:00]}  Nc6 {[%clk 0:02:52]} 5. d4 {[%clk 0:03:01]}  Bg4 {[%clk 0:02:43]} 6. Be2 {[%clk 0:02:53]}  e6 {[%clk 0:02:41]} 7. O-O {[%clk 0:02:52]}  Nf6 {[%clk 0:02:40]} 8. h3 {[%clk 0:02:48]}  Bxf3 {[%clk 0:02:34]} 9. Bxf3 {[%clk 0:02:47]}  cxd4 {[%clk 0:02:34]} 10. exd4 {[%clk 0:02:44]}  Bd6 {[%clk 0:02:34]} 11. c4 {[%clk 0:02:38]}  O-O {[%clk 0:02:34]} 12. Nc3 {[%clk 0:01:56]}  Rc8 {[%clk 0:02:32]} 13. c5 {[%clk 0:01:49]}  Bb8 {[%clk 0:02:31]} 14. a3 {[%clk 0:01:49]}  Qc7 {[%clk 0:02:25]} 15. g3 {[%clk 0:01:48]}  Rfd8 {[%clk 0:02:24]} 16. b4 {[%clk 0:01:45]}  e5 {[%clk 0:02:20]} 17. dxe5 {[%clk 0:01:44]}  Nxe5 {[%clk 0:02:15]} 18. Na4 {[%clk 0:01:41]}  Nxf3+ {[%clk 0:01:50]} 19. Qxf3 {[%clk 0:01:42]}  d4 {[%clk 0:01:22]} 20. Nb6 {[%clk 0:01:40]}  Qc6 {[%clk 0:01:22]} 21. Qxc6 {[%clk 0:01:20]}  Rxc6 {[%clk 0:01:22]} 22. Rad1 {[%clk 0:01:20]}  d3 {[%clk 0:01:06]} 23. Bxf6 {[%clk 0:00:54]}  Rxf6 {[%clk 0:01:03]} 24. Rd2 {[%clk 0:00:54]}  h5 {[%clk 0:00:50]} 25. Rfd1 {[%clk 0:00:48]}  h4 {[%clk 0:00:50]} 26. Rxd3 {[%clk 0:00:45]}  Rxd3 {[%clk 0:00:42]} 27. Rxd3 {[%clk 0:00:45]}  Bc7 {[%clk 0:00:38]} 28. Nd5 {[%clk 0:00:44]}  hxg3 {[%clk 0:00:22]} 29. fxg3 {[%clk 0:00:42]}  Be5 {[%clk 0:00:11]} 30. Nxf6+ {[%clk 0:00:41]}  Bxf6 {[%clk 0:00:12]} 31. Rd7 {[%clk 0:00:40]} 1-0


[Site "https://www.chess.com"]